Cogmind - Beta 16.1 @@@ ROGUE MODE // 2026.02.13 @ 14:15:24 Player: Voldy Result: Destroyed by HD-7VI(R) with Subdweller Machine Gun Performance ------------- Evolutions (0) 0 Regions Visited (3) 600 Robots Destroyed (22) 110 Value Destroyed (523) 523 Prototype IDs (2) 40 Alien Tech Used (0) 0 Bonus (0) 0 TOTAL SCORE: 1273 Bonus ------- None Cogmind --------- Core Integrity 0/250 Matter 290/300 Energy 125/125 System Corruption 0% Temperature Cool (0) Movement Rolling (140) Ox4 Location -10/Subcaves Parts ------- > --- POWER (1) -------- Light Ion Engine > --- PROPULSION (2) --- Aluminum Leg Wheel > --- UTILITY (2) ------ Heat Sink High-capacity Storage Unit > --- WEAPON (2) ------- Small Laser > --- INVENTORY (20) --- Light Ion Engine Light Ion Engine Heat Sink Heat Sink Structural Scanner Structural Scanner Small Laser Small Laser Beam Cannon Beam Cannon Assault Rifle Grenade Launcher Grenade Launcher Datajack Mining Laser Scrap Shield Fragment (50) Scrap Shield Fragment (45) Peak State ------------ > --- POWER ------------ Ion Engine > --- PROPULSION ------- Light Treads Light Treads > --- UTILITY ---------- High-capacity Storage Unit Small Matter Pod > --- WEAPON ----------- EM Pulse Gun Assault Rifle > --- INVENTORY -------- Ion Engine Ion Engine Heat Sink Medium Laser Medium Laser Small Laser Beam Cannon Assault Rifle Grenade Launcher Datajack [Rating: 8] Favorites ----------- Power Ion Engine Engine Ion Engine Propulsion Light Treads Treads Light Treads Leg Aluminum Leg Wheel Wheel Utility High-capacity Storage Unit Device Heat Sink Storage High-capacity Storage Unit Weapon Assault Rifle Energy Gun Medium Laser Ballistic Gun Assault Rifle Build | -11 -10 -10 -10 ------- Run | Yrd Mat Min Sub Slots Evolved . | . . . . Power . | . . . . Propulsion . | . . . . Utility . | . . . . Weapon . | . . . . Parts Attached 15 | . 12 1 2 Power 3 | . 2 . 1 Engine 3 | . 2 . 1 Core . | . . . . Reactor . | . . . . Propulsion 5 | . 4 1 . Treads 2 | . 2 . . Leg 2 | . 2 . . Wheel 1 | . . 1 . Hover . | . . . . Flight . | . . . . Utility 3 | . 3 . . Device 1 | . 1 . . Storage 2 | . 2 . . Processor . | . . . . Hackware . | . . . . Protection . | . . . . Artifact . | . . . . Weapon 4 | . 3 . 1 Energy Gun 4 | . 3 . 1 Energy Cannon . | . . . . Ballistic Gun . | . . . . Ballistic Cannon . | . . . . Launcher . | . . . . Special Weapon . | . . . . Impact Weapon . | . . . . Slashing Weapon . | . . . . Piercing Weapon . | . . . . Special Melee Weapon . | . . . . Unidentified Prototypes . | . . . . Parts Lost 12 | . 9 . 3 Power 3 | . 2 . 1 Propulsion 3 | . 3 . . Utility 1 | . 1 . . Weapon 5 | . 3 . 2 Highest Loss Streak 4 | . 4 . 3 To Critical Strikes . | . . . . Average Backups 12 | . 11 16 16 Power 2 | . 2 2 2 Propulsion . | . . . . Utility 1 | . . 4 4 Weapon 7 | . 7 8 8 Tool/Special . | . . . . Unused Backups 21 | . 7 . 14 Power 2 | . . . 2 Propulsion 4 | . 4 . . Utility 7 | . 3 . 4 Weapon 7 | . . . 7 Tool/Special 1 | . . . 1 Average Slot Usage (%) 95 | . 94 95 100 Engine 13 | . 13 14 14 Treads 18 | . 21 . . Leg 4 | . 2 14 14 Wheel 1 | . . 9 14 Device 5 | . 3 14 14 Storage 21 | . 23 14 14 Energy Gun 19 | . 17 28 28 Ballistic Gun 8 | . 10 . . Peak Build Rating 8 | . 8 8 8 Average Rating 7 | . 7 7 7 On Entrance 6 | 6 6 7 8 Avg Prop Armor Cover (%) 9 | . 8 9 9 Naked Turns . | . . . . Heaviest Build 50 | 14 50 49 49 Greatest Support 40 | 20 40 10 10 Greatest Overweight (x) 16 | . 16 4 4 Average Overweight (x) 2 | . 1 4 4 Largest Inventory Capacity 20 | . 20 20 20 Average Capacity 19 | . 19 20 20 Most Carried 18 | . 18 17 17 Average Carried 12 | . 11 16 16 Final Capacity 20 | 8 20 20 20 Final Carried 17 | 6 15 17 17 Class Distribution -------------------- 83% | Mutant 16% | Scavenger-Mutant Dominant Class ---------------- Mutant | -10/Materials Scavenger-Mutant | -10/Mines Scavenger-Mutant | -10/Subcaves Resources | -11 -10 -10 -10 ----------- Run | Yrd Mat Min Sub Matter Collected 474 | 173 271 30 . Remotely . | . . . . Salvage Created 803 | . 702 41 60 Parts 40 | . 36 2 2 Haulers Intercepted . | . . . . Recyclers Shooed 2 | . 2 . . Parts Field Recycled . | . . . . Retrieved Matter . | . . . . Parts Self-Destructed . | . . . . Prevented . | . . . . Parts Restored . | . . . . Kills | -11 -10 -10 -10 ------- Run | Yrd Mat Min Sub Combat Hostiles Destroyed 16 | . 15 . 1 Guns 15 | . 14 . 1 AOE 1 | . 1 . . Classes Destroyed 7 | . 5 1 1 Worker 3 | . 2 1 . Tunneler 1 | . . 1 . Recycler 1 | . 1 . . Watcher 1 | . 1 . . Swarmer 3 | . 3 . . Grunt 12 | . 12 . . Subdweller 1 | . . . 1 Best Kill Streak 3 | . 3 1 1 Combat Bots Only 2 | . 2 . 1 Max Kills in Single Turn 2 | . 2 1 1 Gunslinging . | . . . . Exploded 1 | . 1 . . Melee . | . . . . Uniques/NPCs Destroyed . | . . . . Combat | -11 -10 -10 -10 -------- Run | Yrd Mat Min Sub Hostile Shots Fired 161 | . 147 . 14 Missed 51 | . 47 . 4 Hits 110 | . 100 . 10 Projectile 110 | . 100 . 10 Damage Taken 1314 | . 1068 . 246 Core 254 | . 195 . 59 Absorbed by Shields . | . . . . Core Remaining (%) 100 | 100 . . . Volleys Fired 62 | . 54 4 4 Largest 2 | . 2 2 2 Hottest 100 | . 100 90 90 Shots Fired 124 | . 108 8 8 Gun 124 | . 108 8 8 Cannon . | . . . . Launcher . | . . . . Special . | . . . . Kinetic 46 | . 46 . . Thermal 58 | . 42 8 8 Explosive . | . . . . Electromagnetic 20 | . 20 . . Robot Hit Streak 19 | . 19 3 8 Robot Miss Streak 7 | . 7 1 1 Penetration Max . | . . . . Secondary Targets 2 | . 2 . . Max Gunslinging Chain 1 | . 1 . . Shots Hit Robots 87 | . 75 5 7 Core Hits 39 | . 34 2 3 Critical Kills . | . . . . Critical Parts Destroyed 1 | . 1 . . Critical Strikes 5 | . 4 . 1 Burn 4 | . 3 . 1 Destroy 1 | . 1 . . Melee Attacks . | . . . . Impact . | . . . . Slashing . | . . . . Piercing . | . . . . Sneak Attacks . | . . . . Combat Hostiles . | . . . . Follow-up Attacks . | . . . . Damage Inflicted 1189 | . 1056 52 81 Guns 1121 | . 988 52 81 Cannons . | . . . . Explosions 56 | . 56 . . Melee . | . . . . Ramming 12 | . 12 . . Kinetic 415 | . 415 . . Thermal 564 | . 431 52 81 Explosive . | . . . . Electromagnetic 198 | . 198 . . Impact . | . . . . Slashing . | . . . . Piercing . | . . . . Highest Corruption . | . . . . Average Corruption . | . . . . Corruption Purged . | . . . . Corruption Blocked . | . . . . Overload Shots . | . . . . Overflow Damage . | . . . . Projectiles . | . . . . Explosions . | . . . . Melee . | . . . . Knockbacks . | . . . . Impact . | . . . . Kinetic . | . . . . Secondary . | . . . . Self-Inflicted Damage . | . . . . Shots . | . . . . Rammed 4 | . 4 . . Targets Rammed 4 | . 4 . . Kicked . | . . . . Crushed . | . . . . Highest Temperature 106 | . 106 . . Average Temperature 33 | . 33 . . Received Heat Transfer 585 | . 549 . 36 Siege Activations . | . . . . Martial Activations . | . . . . Shielding Activations . | . . . . Robots Disrupted . | . . . . Combat Hostiles . | . . . . Robots Corrupted . | . . . . Combat Hostiles . | . . . . Parts Fried . | . . . . Impact Corruptions . | . . . . Robots Melted . | . . . . Combat Hostiles . | . . . . Parts Melted 6 | . 3 . 3 Heat Transferred 1866 | . 1432 137 297 Parts Sabotaged . | . . . . Parts Stolen . | . . . . Parts Stripped . | . . . . Power Chain Reactions 1 | . 1 . . Alert | -11 -10 -10 -10 ------- Run | Yrd Mat Min Sub Maximum Alert Level 1 | . 1 . . Low Security (%) 84 | . 82 100 . Level 1 15 | . 17 . . Level 2 . | . . . . Level 3 . | . . . . Level 4 . | . . . . Level 5 . | . . . . High Security . | . . . . Max Security . | . . . . Peak Influence 249 | . 249 62 . Initial 62 | . . 62 . Average 84 | . 90 35 . Influence Increases 530 | . 520 10 . Destroy 0b10 Robot/C 300 | . 300 . . Destroy 0b10 Robot/NC 30 | . 20 10 . Destroy Leader 52 | . 52 . . Successful Hack 8 | . 8 . . Destroy Structure 5 | . 5 . . Lose Combat Pursuer 135 | . 135 . . Influence Decreases 530 | . 360 168 2 Entered New Map 100 | . . 98 2 Time Decay 340 | . 270 70 . Lost Part 90 | . 90 . . Squads Dispatched 4 | . 4 . . Investigation 2 | . 2 . . Extermination . | . . . . Reinforcement 2 | . 2 . . Assault . | . . . . Garrison . | . . . . Intercept . | . . . . Searches Triggered . | . . . . Construction Impeded . | . . . . Haulers Reinforced . | . . . . Active Scanning Responses . | . . . . Cargo Convoy Interrupts . | . . . . Stealth | -11 -10 -10 -10 --------- Run | Yrd Mat Min Sub Distress Signals 4 | . 4 . . Communications Jammed . | . . . . Distress Signals . | . . . . Times Spotted 31 | . 29 . 2 Peak Tracking Total 5 | . 5 . 2 Tactical Retreats 6 | . 6 . . Traps | -11 -10 -10 -10 ------- Run | Yrd Mat Min Sub Traps Triggered 1 | . 1 . . Indirectly . | . . . . Trap Hack Attempts . | . . . . Triggered . | . . . . Disarmed . | . . . . Reprogrammed . | . . . . Reused . | . . . . Traps Extracted . | . . . . Installed . | . . . . Triggered . | . . . . Machines | -11 -10 -10 -10 ---------- Run | Yrd Mat Min Sub Machines Disabled . | . . . . Max in Single Turn . | . . . . Machines Repaired . | . . . . Machines Dismantled . | . . . . Machines Sabotaged . | . . . . Overloaded Fab Kills . | . . . . Hacking | -11 -10 -10 -10 --------- Run | Yrd Mat Min Sub Machines Accessed 3 | . 3 . . Terminals 3 | . 3 . . Fabricators . | . . . . Repair Stations . | . . . . Recycling Units . | . . . . Scanalyzers . | . . . . Garrison Access . | . . . . Total Hacks 8 | . 8 . . Successful 3 | . 3 . . Failed 5 | . 5 . . Catastrophic 2 | . 2 . . Database Lockouts . | . . . . Manual 3 | . 3 . . Terminals 8 | . 8 . . Fabricators . | . . . . Repair Stations . | . . . . Recycling Units . | . . . . Scanalyzers . | . . . . Garrison Access . | . . . . Terminal Hacks 3 | . 3 . . Prototype ID Bank 1 | . 1 . . Branch Access Points 1 | . 1 . . Scanalyzer Index 1 | . 1 . . Fabricator Hacks . | . . . . Repair Station Hacks . | . . . . Recycling Unit Hacks . | . . . . Scanalyzer . | . . . . Garrison Access Hacks . | . . . . Unauthorized Hacks . | . . . . Terminals . | . . . . Fabricators . | . . . . Repair Stations . | . . . . Recycling Units . | . . . . Scanalyzers . | . . . . Garrison Access . | . . . . Data Cores Recovered . | . . . . Used . | . . . . Hacking Detections 3 | . 3 . . Full Trace Events 1 | . 1 . . Feedback Events . | . . . . Feedback Blocked . | . . . . Robot Schematics Acquired . | . . . . Robots Built . | . . . . Authchips . | . . . . Time . | . . . . Total Robot Build Rating . | . . . . Part Schematics Acquired . | . . . . Parts Built . | . . . . Authchips . | . . . . Time . | . . . . Total Part Build Rating . | . . . . Part Studies Acquired . | . . . . Parts Repaired . | . . . . Time . | . . . . Parts Recycled . | . . . . Recycled Matter . | . . . . Retrieved Matter . | . . . . Retrieved Components . | . . . . Parts Scanalyzed . | . . . . Part Schematics Acquired . | . . . . Parts Damaged . | . . . . Bothacking | -11 -10 -10 -10 ------------ Run | Yrd Mat Min Sub Used RIF Installer . | . . . . Robots Hacked . | . . . . Non-combat . | . . . . Combat . | . . . . Robot Hacks Applied . | . . . . Relay Couplers Released . | . . . . Fabnet Peak Effective % . | . . . . Robots Rewired . | . . . . Allies Hacked . | . . . . Hacks Repelled . | . . . . Allies | -11 -10 -10 -10 -------- Run | Yrd Mat Min Sub Total Allies . | . . . . Largest Group . | . . . . Highest-Rated Group . | . . . . Highest-Rated Ally . | . . . . Total Orders . | . . . . Ally Attacks . | . . . . Total Damage . | . . . . Kills . | . . . . Allies Corrupted . | . . . . Allies Melted . | . . . . Intel | -11 -10 -10 -10 ------- Run | Yrd Mat Min Sub Active Infowar (turns) . | . . . . Robot Analysis Total . | . . . . Derelict Logs Recovered . | . . . . Drone Launches . | . . . . Drone Recoveries . | . . . . Exploration | -11 -10 -10 -10 ------------- Run | Yrd Mat Min Sub Turns Passed 1247 | . 1038 141 68 Spaces Moved 408 | 1 297 73 37 Core 6 | . 6 . . Treads 263 | . 263 . . Legs 38 | 1 28 9 . Wheels 101 | . . 64 37 Hover . | . . . . Flight . | . . . . Fastest Speed 120 | 120 120 140 140 Average Speed 232 | 120 258 172 140 Slowest Speed 850 | 120 850 400 140 Overloaded Moves . | . . . . Propulsion Burnouts . | . . . . Robots Hopped . | . . . . Potential Cave-ins . | . . . . Cave-ins Triggered . | . . . . Exploration Rate (%) 22 | 3 60 22 3 Regions Visited 3 Branch Regions 2 Pre-discovered Areas . | . . . . Known Exits Taken 1 | . 1 . . Unknown Exits Taken 2 | 1 . 1 . Scrap Searched . | . . . . Spaces Dug . | . . . . Terrain Destroyed 4 | . 4 . . Melee . | . . . . Projectile . | . . . . AOE 4 | . 4 . . Terrain Rammed . | . . . . Walls Destroyed . | . . . . Machines Disabled . | . . . . Actions | -11 -10 -10 -10 --------- Run | Yrd Mat Min Sub Total 586 | . 461 80 45 Wait 58 | . 58 . . Move 405 | . 296 72 37 Hop . | . . . . Pick Up 31 | . 26 3 2 Fast Attach . | . . . . Attach 15 | . 12 1 2 Detach 3 | . 3 . . Swap . | . . . . Drop 8 | . 8 . . Fire 62 | . 54 4 4 Melee . | . . . . Ram . | . . . . Kick . | . . . . Crush 4 | . 4 . . Escape Stasis . | . . . . Rewire . | . . . . Trap . | . . . . Miscellaneous . | . . . . Route ------- -11/Scrapyard -10/Materials (discovered 5 exits: [*Mat x3] / *Min x2) -10/Mines -10/Subcaves History --------- Turn | Location | Event 1 | -11/Scrapyard | Discovered new exit (range 0) 1 | -11/Scrapyard | Entered Materials 308 | -10/Materials | Discovered new exit (range 7) 316 | -10/Materials | Build established: Mutant 376 | -10/Materials | Identified exit to Mines 450 | -10/Materials | Discovered new exit (range 13) 825 | -10/Materials | Core integrity fell below 50% 828 | -10/Materials | Lost 4 parts (1p1n1u1w) 902 | -10/Materials | Discovered new exit (range 13) 1039 | -10/Materials | Entered Mines 1042 | -10/Mines | YI-UF0 nonchalantly dropped a Grenade Launcher on the ground 1175 | -10/Mines | Discovered new exit (range 4) 1180 | -10/Mines | Entered Subcaves 1181 | -10/Subcaves | Approached by a straggling Scientist 1245 | -10/Subcaves | Core integrity fell below 20% 1248 | -10/Subcaves | Destroyed by HD-7VI(R) with Subdweller Machine Gun Last Messages --------------- 01181_ T5-85W(c): "Thank the algorithms! I was beginning to lose hope I'd never make it past all the Subs lurking out here." 01184_ T5-85W(c): "Hey, let me tag along and I can get us both out of this nasty situation. At least I think I can... The group I got separated from was talking about a shortcut back to the UFD." 01213_ LC-ZIC(u) builds Twisted Machinery. T5-85W(c): "I think it's somewhere west of here" 01232_ LC-ZIC(u) builds Twisted Machinery. 01234_ Sml. Laser destroyed. 01236_ Ion Engine destroyed. 01237_ W6-W29(R) suffers critical hit (Burn). 01238_ W6-W29(R) heat spikes uncontrollably. 01238_ W6-W29(R) overheating. 01240_ Sub. Power Source melted. 01240_ Sub. Optics melted. 01240_ Disposable Heat Sink melted. 01240_ W6-W29(R) destroyed. 01242_ Med. Laser destroyed. 01242_ LC-ZIC(u) tweaks Twisted Machinery. 01245_ Acquired Scrap Shield Fragment. Map ----- +----------------------------------------------------+ | ?????????????????????????### #??????????????? | | ????????????????????????## ##??????????????? | | ???????????????????????## #??????????????? | | ???????????????????????# #??????????????? | | ???????????????????????## ## #??????????????? | | ????????????????????????####### ##?????????????? | | ?????????????????????????????# #?????????????? | | ?????????????????????????????## #?????????????? | | ??????????????????????????????# #?????????????? | | ??????????????????????????????# #?????????????? | | ?????????????????????????????## ##?????????????? | | ?????????????????????????????# #?????????????? | | ?????????????????????????????## ##?????????????? | | ?????????????????????????????# #?????????????? | | ?????????????????????????????# #?????????????? | | ?????????????????????????????# #?????????????? | | ?????????????????????????????## #?????????????? | | ??????????????????????????????# ##?????????????? | | ??????????????????????????????# #??????????????? | | ????????????????????????####### #??????????????? | | ??????????????????????### "## ##??????????????? | | ??????????????????????# "" #???????????????? | | ??????????????????????## c " ##???????????????? | | ??????????### ####????# """u##????????????????? | | ????????? ??# R""##?????????????????? | | ????????? "#%@""##??????????????????? | | ????????? & #???????????????????? | | ????????? #???????????????????? | | ????????? ## #???????????????????? | | ?????????? ##### #?# #???????????????????? | | ??????????????????## ??## ##???????????????????? | | ???????????????????##????###????????????????????? | | ????????????????????????????????????????????????? | | ????????????????????????????????????????????????? | | ????????????????????????????????????????????????? | | ????????????????????????????????????????????????? | | ????????????????????????????????????????????????? | | ????????????????????????????????????????????????? | | ????????????????????????????????????????????????? | | ????????????????????????????????????????????????? | | ????????????????????????????????????????????????? | | ????????????????????????????????????????????????? | | ????????????????????????????????????????????????? | | ????????????????????????????????????????????????? | | ????????????????????????????????????????????????? | | ????????????????????????????????????????????????? | | ????????????????????????????????????????????????? | | | | | | | +----------------------------------------------------+ Best States ------------- Heat Dissipation 35 Energy Generation 10 Energy Capacity 250 Matter Stores 350 Matter Capacity 350 Sight Range 16 Terrain Scan Density 10 Evasion (%) 55 Recoil Reduction 2 Item Schematics ----------------- None Robot Schematics ------------------ None Fabricated ------------ Nothing Repaired ---------- Nothing Studied --------- None Alien Tech Used ----------------- None Achievements -------------- None Challenges ------------ None Game ------ Seed ZioniteNullPlatform Manual? 0 Play Time 00:08:55 Cumulative 13.8 hours Start 2026.02.13 @ 14:00:44 End 2026.02.13 @ 14:15:24 Sessions 1 Manual Loads 0 Difficulty Rogue Special Mode None Game No. 33 Rogue 24 Adventurer 9 Explorer 0 Win Type - Total 0 Types 0/0/0/0/0/0/0/0/0/0 Lore% 17 Gallery% 18 Achievement% 16 Wizard Run 0 Options --------- Layout 0 ASCII 0 Keyboard 1 Movement Numpad Keybinds 0 Fullscreen 2 Font 18/SmallcapsGlow Map View 76x50 Zoom Use 0% Tactical HUD 1 Map Filters NONE Filters NONE Steam 1 RUN: b628891e-d1a3-470e-bd9c-4f751eae4754